Cogmind - Beta 13 @@@ ROGUE MODE // 2024.05.04 @ 04:50:30 Player: luckinvolved Result: Destroyed by P-60 Hacker with Shock Rifle Performance ------------- Evolutions (3) 1500 Regions Visited (9) 1800 Robots Destroyed (166) 830 Value Destroyed (6623) 6623 Prototype IDs (6) 120 Alien Tech Used (0) 0 Bonus (2250) 2250 TOTAL SCORE: 13123 Bonus ------- High Alert Combat Kills 667 Follower Combat Kills 332 Entered Garrisons 400 Used RIF Installer 1000 Friendly Fire -149 Cogmind --------- Core Integrity 0/700 Matter 161/300 Energy 100/100 System Corruption 18% Temperature Cool (0) Movement Core (1350) Ox26 Location -7/Factory Parts ------- > --- POWER (1) -------- (None) > --- PROPULSION (4) --- (None) > --- UTILITY (6) ------ Huge Storage Unit Advanced Terrain Scan Processor > --- WEAPON (2) ------- (None) > --- INVENTORY (25) --- Improved Cooling System Large Matter Pod (150) Weight Redist. System Terrain Scanner Improved Terrain Scanner Improved Targeting Computer Improved Targeting Computer Weapon Cycler Hardened Medium Armor Plating Improved Shield Generator System Shield System Shield Relay Coupler [NC] (27) Relay Coupler [Swarmer] (39) Relay Coupler [Swarmer] (38) Relay Coupler [Sentry] (23) Relay Coupler [Sentry] (19) Relay Coupler [Hunter] (13) Long-range Tractor Beam Thief Drone Bay (1/3) Gauss Cannon Improved Grenade Launcher Heavy Rocket Launcher Peak State ------------ > --- POWER ------------ Improved Ion Engine > --- PROPULSION ------- Carbon-fiber Leg Carbon-fiber Leg Titanium Leg Improved Titanium Leg > --- UTILITY ---------- Huge Storage Unit Medium Reactive Plating Relay Coupler [NC] Relay Coupler [Grunt] Relay Coupler [Duelist] Relay Coupler [Sentry] > --- WEAPON ----------- Gauss Rifle Remote Datajack > --- INVENTORY -------- Light Deuterium Engine Improved Cooling System Large Matter Pod Terrain Scanner Advanced Terrain Scan Processor Improved Targeting Computer Improved Targeting Computer Weapon Cycler Light Armor Plating Improved Shield Generator System Shield System Shield Relay Coupler [NC] Relay Coupler [Swarmer] Relay Coupler [Swarmer] Relay Coupler [Sentry] Relay Coupler [Sentry] Relay Coupler [Specialist] Relay Coupler [Hunter] Relay Coupler [Heavy] Long-range Tractor Beam Thief Drone Bay Gauss Rifle Improved Grenade Launcher Remote Datajack [Rating: 47] Favorites ----------- Power Improved Ion Engine Engine Improved Ion Engine Power Core Light Nuclear Core Propulsion Light Treads Treads Light Treads Leg Carbon-fiber Leg Flight Unit Improved Flight Unit Utility Huge Storage Unit Device Weapon Cycler Storage Huge Storage Unit Processor Advanced Terrain Scan Processor Hackware Relay Coupler [Sentry] Protection Light Armor Plating Weapon Gauss Rifle Energy Gun EM Pulse Gun Ballistic Gun Gauss Rifle Ballistic Cannon Gauss Cannon Launcher Rocket Launcher Special Weapon Remote Datajack Special Melee Weapon Improved Datajack Build | -11 -10 -10 -9 -9 -8 -8 -8 -8 -7 ------- Run | Yrd Mat Min Mat Min Mat Gar Mat Gar Fac Slots Evolved 6 | . . . 2 . 2 . . . 2 Power . | . . . . . . . . . . Propulsion 2 | . . . 1 . 1 . . . . Utility 4 | . . . 1 . 1 . . . 2 Weapon . | . . . . . . . . . . Parts Attached 154 | 6 10 3 38 4 34 19 12 3 25 Power 14 | 1 . . 4 . 3 2 2 . 2 Engine 11 | 1 . . 4 . 2 1 1 . 2 Core 3 | . . . . . 1 1 1 . . Reactor . | . . . . . . . . . . Propulsion 37 | 2 1 1 10 1 12 6 2 . 2 Treads 31 | 2 1 1 9 1 12 4 . . 1 Leg 5 | . . . . . . 2 2 . 1 Wheel . | . . . . . . . . . . Hover . | . . . . . . . . . . Flight 1 | . . . 1 . . . . . . Utility 65 | 1 4 2 12 3 11 7 7 3 15 Device 12 | . . 1 1 . 4 2 1 . 3 Storage 6 | 1 2 . . . 1 1 1 . . Processor 1 | . . . . . . . . . 1 Hackware 11 | . . . . . . 1 4 3 3 Protection 35 | . 2 1 11 3 6 3 1 . 8 Artifact . | . . . . . . . . . . Weapon 38 | 2 5 . 12 . 8 4 1 . 6 Energy Gun 4 | 1 2 . 1 . . . . . . Energy Cannon . | . . . . . . . . . . Ballistic Gun 23 | 1 2 . 10 . 6 3 . . 1 Ballistic Cannon 3 | . 1 . . . . . . . 2 Launcher 3 | . . . 1 . 2 . . . . Special Weapon 4 | . . . . . . . 1 . 3 Impact Weapon . | . . . . . . . . . . Slashing Weapon . | . . . . . . . . . . Piercing Weapon . | . . . . . . . . . . Special Melee Weapon 1 | . . . . . . 1 . . . Unidentified Prototypes 6 | . . 1 4 . 1 . . . . Corrupted Parts 1 | . . 1 . . . . . . . System Corruption 1 | . . 1 . . . . . . . Parts Lost 66 | . 2 . 5 . 20 15 2 1 21 Power 10 | . . . 1 . 3 2 1 1 2 Propulsion 23 | . 1 . 1 . 7 7 1 . 6 Utility 19 | . . . 2 . 7 3 . . 7 Weapon 14 | . 1 . 1 . 3 3 . . 6 Highest Loss Streak 10 | . 1 . 2 . 10 6 1 1 10 To Critical Strikes . | . . . . . . . . . . Average Slot Usage (%) 92 | . 97 100 99 98 94 92 97 95 82 Engine 7 | . 14 14 10 11 7 5 1 5 6 Core 1 | . . . . . 1 3 7 . . Treads 20 | . 28 28 32 33 35 23 2 . 3 Leg 8 | . . . . . . 5 32 36 15 Device 3 | . . 2 . . 6 12 2 . 1 Storage 10 | . 14 14 11 11 12 9 9 9 7 Hackware 8 | . . . . . . . 16 26 22 Protection 12 | . 12 11 21 20 12 13 7 . 8 Energy Gun 1 | . 9 14 . . . . . . . Ballistic Gun 13 | . 13 . 21 22 17 17 9 9 3 Ballistic Cannon 1 | . 5 14 . . . . . . 3 Special Weapon 2 | . . . . . . . 7 9 4 Naked Turns . | . . . . . . . . . . Heaviest Build 127 | 14 33 33 46 42 127 117 99 96 125 Greatest Support 83 | 40 40 40 67 63 83 82 62 62 67 Greatest Overweight (x) 32 | . . . . . 2 6 3 1 32 Average Overweight (x) . | . . . . . . 1 1 1 2 Largest Inventory Capacity 25 | 8 15 15 15 15 25 25 25 25 25 Average Capacity 20 | 6 10 15 15 15 18 25 25 25 25 Most Carried 25 | 2 13 14 15 15 25 25 25 25 25 Average Carried 18 | 1 9 12 14 14 14 23 24 23 24 Final Capacity 25 | 8 15 15 15 15 25 25 25 25 25 Final Carried 25 | 2 12 14 15 15 25 25 25 25 23 Class Distribution -------------------- 38% | Bothacker-Mutant 31% | Scavenger-Mutant 30% | Mutant Dominant Class ---------------- Mutant | -10/Materials Mutant | -10/Mines Mutant | -9/Materials Scavenger-Mutant | -9/Mines Scavenger-Mutant | -8/Materials Scavenger-Mutant | -8/Garrison Bothacker-Mutant | -8/Materials Bothacker-Mutant | -8/Garrison Bothacker-Mutant | -7/Factory Resources | -11 -10 -10 -9 -9 -8 -8 -8 -8 -7 ----------- Run | Yrd Mat Min Mat Min Mat Gar Mat Gar Fac Matter Collected 4940 | 260 439 79 1115 . 1332 635 266 134 680 Remotely . | . . . . . . . . . . Salvage Created 5762 | . 709 77 1503 . 2034 914 . . 525 Parts 370 | . 52 4 124 . 118 48 . . 24 Haulers Intercepted 8 | . 2 . 2 . 4 . . . . Recyclers Shooed 5 | . 2 . . . 2 . . . 1 Parts Field Recycled . | . . . . . . . . . . Retrieved Matter . | . . . . . . . . . . Parts Self-Destructed . | . . . . . . . . . . Prevented . | . . . . . . . . . . Kills | -11 -10 -10 -9 -9 -8 -8 -8 -8 -7 ------- Run | Yrd Mat Min Mat Min Mat Gar Mat Gar Fac Combat Hostiles Destroyed 141 | . 13 2 44 . 45 23 . . 14 Guns 122 | . 13 1 41 . 41 23 . . 3 Cannons 12 | . . 1 . . . . . . 11 AOE 7 | . . . 3 . 4 . . . . Classes Destroyed 16 | . 7 . 4 . 3 2 . . . Worker 4 | . 2 . 1 . . . . . 1 Builder 2 | . 1 . . . 1 . . . . Hauler 8 | . 2 . 2 . 4 . . . . Recycler 2 | . . . . . 2 . . . . Operator 1 | . 1 . . . . . . . . Watcher 7 | . 3 . 3 . 1 . . . . Swarmer 32 | . 3 . 16 . 6 7 . . . Grunt 72 | . 10 2 15 . 24 13 . . 8 Brawler 5 | . . . 1 . 2 1 . . 1 Duelist 3 | . . . 1 . 2 . . . . Protector 1 | . . . 1 . . . . . . Sentry 18 | . . . 10 . 8 . . . . Specialist 2 | . . . . . 2 . . . . Hunter 1 | . . . . . . 1 . . . Programmer 6 | . . . . . . 1 . . 5 Heavy 1 | . . . . . 1 . . . . Thug 1 | . . . . . 1 . . . . Best Kill Streak 8 | . 2 2 7 . 8 6 . . 3 Combat Bots Only 8 | . 2 2 7 . 8 6 . . 3 Max Kills in Single Turn 2 | . 2 1 2 . 2 2 . . 1 Gunslinging 1 | . . . 1 . . 1 . . . Exploded 2 | . . . 2 . 2 . . . . Melee . | . . . . . . . . . . Uniques/NPCs Destroyed . | . . . . . . . . . . Combat | -11 -10 -10 -9 -9 -8 -8 -8 -8 -7 -------- Run | Yrd Mat Min Mat Min Mat Gar Mat Gar Fac Hostile Shots Fired 1036 | . 74 3 191 . 288 166 25 13 276 Missed 290 | . 25 . 61 . 61 40 8 4 91 Damage Taken 10974 | . 579 42 1640 . 3481 1767 251 181 3033 Core 1536 | . 77 . 217 . 295 132 17 85 713 Absorbed by Shields 586 | . . . . . 548 5 33 . . Ignored by Resistances 42 | . . . . . . . . . 42 Core Remaining (%) 54 | 100 . 69 . 45 . . . 3 . Volleys Fired 495 | . 50 4 97 . 129 76 14 22 103 Largest 2 | . 2 2 2 . 2 2 1 1 1 Hottest 75 | . 75 75 75 . 58 56 5 28 48 Shots Fired 851 | . 99 8 194 . 256 149 14 22 109 Gun 734 | . 91 4 191 . 252 149 . 9 38 Cannon 68 | . 8 4 1 . . . . . 55 Launcher 6 | . . . 2 . 4 . . . . Special 43 | . . . . . . . 14 13 16 Kinetic 776 | . 78 4 191 . 252 149 . 9 93 Thermal . | . . . . . . . . . . Explosive 6 | . . . 2 . 4 . . . . Electromagnetic 26 | . 21 4 1 . . . . . . Robot Hit Streak 19 | . 12 6 19 . 15 9 6 9 11 Robot Miss Streak 7 | . 3 1 7 . 6 5 3 1 3 Penetration Max 1 | . . . . . 1 1 . . 1 Secondary Targets 17 | . . . 6 . 6 5 . . . Max Gunslinging Chain 1 | . . . 1 . 1 1 . . . Shots Hit Robots 611 | . 59 6 149 . 208 90 8 15 76 Core Hits 316 | . 32 3 83 . 137 39 . 1 21 Critical Kills 3 | . . . 1 . 1 1 . . . Critical Parts Destroyed 4 | . . . . . 3 . . 1 . Critical Strikes 14 | . . . 1 . 4 1 . 1 7 Destroy 7 | . . . 1 . 4 1 . 1 . Blast 7 | . . . . . . . . . 7 Melee Attacks 2 | . . . . . . 2 . . . Impact . | . . . . . . . . . . Slashing . | . . . . . . . . . . Piercing . | . . . . . . . . . . Sneak Attacks . | . . . . . . . . . . Combat Hostiles . | . . . . . . . . . . Follow-up Attacks . | . . . . . . . . . . Damage Inflicted 11829 | . 939 96 2588 . 4677 1797 . 66 1666 Guns 9629 | . 846 44 2321 . 3849 1797 . 66 706 Cannons 1082 | . 53 52 17 . . . . . 960 Explosions 1118 | . 40 . 250 . 828 . . . . Melee . | . . . . . . . . . . Ramming . | . . . . . . . . . . Kinetic 10390 | . 634 52 2326 . 3849 1797 . 66 1666 Thermal 40 | . 40 . . . . . . . . Explosive 1078 | . . . 250 . 828 . . . . Electromagnetic 321 | . 265 44 12 . . . . . . Impact . | . . . . . . . . . . Slashing . | . . . . . . . . . . Piercing . | . . . . . . . . . . Highest Corruption 18 | . 2 3 . . . 1 1 1 18 Average Corruption 3 | . 2 2 . . . 1 1 1 5 Corruption Purged . | . . . . . . . . . . Corruption Blocked . | . . . . . . . . . . Effects 86 | . . 1 . . . 6 5 9 65 Message Errors 16 | . . . . . . 1 1 2 12 Matter Fused 17 | . . . . . . 1 . 3 13 Heat Flow Errors 9 | . . . . . . . . 1 8 Energy Discharges 13 | . . . . . . 2 2 1 8 Data Loss (minor) 14 | . . . . . . 1 1 2 10 Data Loss (major) 8 | . . . . . . 1 1 . 6 Misfires 6 | . . . . . . . . . 6 Alerts 3 | . . 1 . . . . . . 2 Overload Shots . | . . . . . . . . . . Overflow Damage 127 | . 10 . 46 . 16 . . . 55 Projectiles 55 | . . . . . . . . . 55 Explosions 72 | . 10 . 46 . 16 . . . . Melee . | . . . . . . . . . . Knockbacks 12 | . . . . . . . . . 12 Impact . | . . . . . . . . . . Kinetic 11 | . . . . . . . . . 11 Secondary 1 | . . . . . . . . . 1 Self-Inflicted Damage 167 | . . . . . 167 . . . . Shots 4 | . . . . . 4 . . . . Rammed . | . . . . . . . . . . Targets Rammed . | . . . . . . . . . . Kicked . | . . . . . . . . . . Crushed . | . . . . . . . . . . Highest Temperature 284 | . 96 99 78 . 144 284 . 87 272 Average Temperature 51 | . 29 44 16 . 36 115 . 34 79 Received Heat Transfer 3722 | . 279 27 567 . 1292 825 48 81 603 Siege Activations . | . . . . . . . . . . Robots Corrupted . | . . . . . . . . . . Combat Hostiles . | . . . . . . . . . . Parts Fried 2 | . 2 . . . . . . . . Impact Corruptions . | . . . . . . . . . . Robots Melted . | . . . . . . . . . . Combat Hostiles . | . . . . . . . . . . Parts Melted . | . . . . . . . . . . Heat Transferred 50 | . 50 . . . . . . . . Parts Sabotaged . | . . . . . . . . . . Parts Stolen . | . . . . . . . . . . Parts Stripped . | . . . . . . . . . . Power Chain Reactions 1 | . 1 . . . . . . . . Alert | -11 -10 -10 -9 -9 -8 -8 -8 -8 -7 ------- Run | Yrd Mat Min Mat Min Mat Gar Mat Gar Fac Peak Influence 1394 | . 272 103 703 255 841 1394 743 530 277 Initial 679 | . . 23 39 255 99 516 679 348 277 Average 385 | . 107 45 397 255 411 897 621 443 103 Maximum Alert Level 4 | . 1 . 3 1 3 4 3 2 1 Low Security (%) 42 | 100 87 100 24 . 30 . . . 88 Level 1 13 | . 12 . 24 100 23 . . 7 11 Level 2 28 | . . . 48 . 26 37 74 92 . Level 3 11 | . . . 1 . 20 34 25 . . Level 4 4 | . . . . . . 27 . . . Level 5 . | . . . . . . . . . . High Security . | . . . . . . . . . . Max Security . | . . . . . . . . . . Squads Dispatched 34 | . 6 . 6 . 13 . 1 . 8 Investigation 6 | . 3 . 2 . 1 . . . . Extermination 6 | . . . . . . . . . 6 Reinforcement 16 | . 3 . 3 . 7 . 1 . 2 Assault 3 | . . . 1 . 2 . . . . Garrison 3 | . . . . . 3 . . . . Intercept . | . . . . . . . . . . Searches Triggered . | . . . . . . . . . . Construction Impeded 2 | . . . 1 . 1 . . . . Haulers Reinforced . | . . . . . . . . . . Active Scanning Responses . | . . . . . . . . . . Cargo Convoy Interrupts . | . . . . . . . . . . Stealth | -11 -10 -10 -9 -9 -8 -8 -8 -8 -7 --------- Run | Yrd Mat Min Mat Min Mat Gar Mat Gar Fac Distress Signals 13 | . 1 . 4 . 7 . 1 . . Communications Jammed . | . . . . . . . . . . Distress Signals . | . . . . . . . . . . Times Spotted 260 | . 27 2 65 . 80 23 16 13 34 Peak Tracking Total 8 | . 3 2 6 . 8 7 3 5 4 Tactical Retreats 12 | . 1 1 1 . 5 1 . . 3 Traps | -11 -10 -10 -9 -9 -8 -8 -8 -8 -7 ------- Run | Yrd Mat Min Mat Min Mat Gar Mat Gar Fac Traps Triggered 26 | . 3 . 5 1 . 10 . 4 3 Indirectly . | . . . . . . . . . . Trap Hack Attempts . | . . . . . . . . . . Triggered . | . . . . . . . . . . Disarmed . | . . . . . . . . . . Reprogrammed . | . . . . . . . . . . Reused . | . . . . . . . . . . Traps Extracted . | . . . . . . . . . . Installed . | . . . . . . . . . . Triggered . | . . . . . . . . . . Machines | -11 -10 -10 -9 -9 -8 -8 -8 -8 -7 ---------- Run | Yrd Mat Min Mat Min Mat Gar Mat Gar Fac Machines Disabled 10 | . . . . . 1 3 . 3 3 Max in Single Turn 1 | . . . . . 1 1 . 1 1 Garrison Relay 6 | . . . . . . 3 . 3 . Machines Repaired . | . . . . . . . . . . Machines Dismantled . | . . . . . . . . . . Machines Sabotaged . | . . . . . . . . . . Overloaded Fab Kills . | . . . . . . . . . . Hacking | -11 -10 -10 -9 -9 -8 -8 -8 -8 -7 --------- Run | Yrd Mat Min Mat Min Mat Gar Mat Gar Fac Machines Accessed 31 | . 7 1 8 1 7 2 1 1 3 Terminals 24 | . 5 . 8 . 5 2 . 1 3 Fabricators . | . . . . . . . . . . Repair Stations . | . . . . . . . . . . Recycling Units 3 | . 2 . . . 1 . . . . Scanalyzers . | . . . . . . . . . . Garrison Access 2 | . . . . . 1 . 1 . . Total Hacks 79 | . 25 1 23 1 18 3 1 1 6 Successful 35 | . 11 1 8 1 7 2 1 1 3 Failed 44 | . 14 . 15 . 11 1 . . 3 Catastrophic 4 | . 2 . . . 2 . . . . Database Lockouts . | . . . . . . . . . . Manual 64 | . 21 . 23 . 14 . . . 6 Terminals 62 | . 17 . 23 . 12 3 . 1 6 Fabricators . | . . . . . . . . . . Repair Stations . | . . . . . . . . . . Recycling Units 12 | . 8 . . . 4 . . . . Scanalyzers . | . . . . . . . . . . Garrison Access 3 | . . . . . 2 . 1 . . Terminal Hacks 12 | . 3 1 4 1 . 2 . 1 . Robot Analysis 4 | . 1 . 3 . . . . . . Open Door 2 | . . 1 . 1 . . . . . Emergency Access Points 1 | . . . . . . 1 . . . Hauler Manifests 2 | . 1 . 1 . . . . . . Registered Components 1 | . 1 . . . . . . . . Patrol Navigation 2 | . . . . . . 1 . 1 . Fabricator Hacks . | . . . . . . . . . . Repair Station Hacks . | . . . . . . . . . . Recycling Unit Hacks 3 | . 2 . . . 1 . . . . Report Inventory 2 | . 1 . . . 1 . . . . Retrieve Components 1 | . 1 . . . . . . . . Scanalyzer . | . . . . . . . . . . Garrison Access Hacks 2 | . . . . . 1 . 1 . . Unlock Access 2 | . . . . . 1 . 1 . . Unauthorized Hacks 18 | . 6 . 4 . 5 . . . 3 Terminals 14 | . 3 . 4 . 4 . . . 3 Botnet 14 | . 3 . 4 . 4 . . . 3 Fabricators . | . . . . . . . . . . Repair Stations . | . . . . . . . . . . Recycling Units 4 | . 3 . . . 1 . . . . Reject 2 | . 1 . . . 1 . . . . Tunnel 2 | . 2 . . . . . . . . Scanalyzers . | . . . . . . . . . . Garrison Access . | . . . . . . . . . . Data Cores Recovered . | . . . . . . . . . . Used . | . . . . . . . . . . Hacking Detections 20 | . 4 . 5 . 7 2 . 1 1 Full Trace Events 3 | . 1 . 1 . 1 . . . . Feedback Events . | . . . . . . . . . . Feedback Blocked . | . . . . . . . . . . Robot Schematics Acquired . | . . . . . . . . . . Robots Built . | . . . . . . . . . . Authchips . | . . . . . . . . . . Time . | . . . . . . . . . . Total Robot Build Rating . | . . . . . . . . . . Part Schematics Acquired . | . . . . . . . . . . Parts Built . | . . . . . . . . . . Authchips . | . . . . . . . . . . Time . | . . . . . . . . . . Total Part Build Rating . | . . . . . . . . . . Parts Repaired . | . . . . . . . . . . Time . | . . . . . . . . . . Parts Recycled . | . . . . . . . . . . Recycled Matter . | . . . . . . . . . . Retrieved Matter . | . . . . . . . . . . Retrieved Components 2 | . 2 . . . . . . . . Parts Scanalyzed . | . . . . . . . . . . Part Schematics Acquired . | . . . . . . . . . . Parts Damaged . | . . . . . . . . . . Bothacking | -11 -10 -10 -9 -9 -8 -8 -8 -8 -7 ------------ Run | Yrd Mat Min Mat Min Mat Gar Mat Gar Fac Used RIF Installer 2 | . . . . . . 1 . 1 . Hotswap 1 | . . . . . . . . 1 . Robots Hacked 24 | . . . . . . 1 6 7 10 Non-combat 1 | . . . . . . . 1 . . Combat 23 | . . . . . . 1 5 7 10 Robot Hacks Applied 25 | . . . . . . 1 6 7 11 parse_system 3 | . . . . . . . 1 . 2 amplify_resonance 4 | . . . . . . . 1 2 1 wipe_record 1 | . . . . . . . . . 1 streamctrl_high 4 | . . . . . . . . 1 3 formatsys_high 13 | . . . . . . 1 4 4 4 Relay Couplers Released 31 | . . . . . . 16 . 15 . Machine Destruction 28 | . . . . . . 13 . 15 . Programmers 3 | . . . . . . 3 . . . Attached 10 | . . . . . . 1 3 3 3 Fabnet Peak Effective % . | . . . . . . . . . . Robots Rewired . | . . . . . . . . . . Allies Hacked . | . . . . . . . . . . Hacks Repelled . | . . . . . . . . . . Allies | -11 -10 -10 -9 -9 -8 -8 -8 -8 -7 -------- Run | Yrd Mat Min Mat Min Mat Gar Mat Gar Fac Total Allies 17 | . . . . . . 1 4 5 7 Largest Group 3 | . . . . . . 1 3 3 2 Highest-Rated Group 90 | . . . . . . 15 61 58 90 Highest-Rated Ally 90 | . . . . . . 15 29 24 90 Total Orders 11 | . . 3 1 . . . 4 . 3 STAY 1 | . . . . . . . 1 . . ROAM 1 | . . . . . . . 1 . . FOLLOW 1 | . . . . . . . 1 . . AID 1 | . . . . . . . 1 . . EXPLORE 2 | . . 1 1 . . . . . . RETURN 5 | . . 2 . . . . . . 3 Ally Attacks 81 | . . 2 3 . . . 32 11 33 Total Damage 1201 | . . . . . . . 419 167 615 Kills 13 | . . . . . . . 6 3 4 Allies Corrupted 1 | . . . . . . . . . 1 Allies Melted . | . . . . . . . . . . Intel | -11 -10 -10 -9 -9 -8 -8 -8 -8 -7 ------- Run | Yrd Mat Min Mat Min Mat Gar Mat Gar Fac Robot Analysis Total 4 | . 1 . 3 . . . . . . Derelict Logs Recovered 1 | . . 1 . . . . . . . Drone Launches 15 | . . 6 3 . . . . . 6 Drone Recoveries 13 | . . 6 2 . . . . . 5 Exploration | -11 -10 -10 -9 -9 -8 -8 -8 -8 -7 ------------- Run | Yrd Mat Min Mat Min Mat Gar Mat Gar Fac Turns Passed 13950 | 109 1364 155 2467 92 2640 2202 769 719 3433 Spaces Moved 5542 | 65 684 68 1257 52 1066 717 336 329 968 Core 8 | 4 . . . . . . . . 4 Treads 3923 | 61 684 68 1257 52 1066 530 . . 205 Legs 1611 | . . . . . . 187 336 329 759 Wheels . | . . . . . . . . . . Hover . | . . . . . . . . . . Flight . | . . . . . . . . . . Fastest Speed 50 | 50 160 160 150 160 160 235 192 192 192 Average Speed 210 | 153 160 160 151 160 187 268 215 192 320 Slowest Speed 1650 | 160 160 160 160 160 312 540 330 192 1650 Overloaded Moves . | . . . . . . . . . . Propulsion Burnouts . | . . . . . . . . . . Robots Hopped . | . . . . . . . . . . Cave-ins Triggered . | . . . . . . . . . . Exploration Rate (%) 48 | 4 94 26 95 11 74 77 39 38 24 Regions Visited 9 Branch Regions 2 Pre-discovered Areas 2 | . 2 . . . . . . . . Known Exits Taken 2 | . . . . . 1 . 1 . . Unknown Exits Taken 5 | 1 1 1 1 1 . . . . . Scrap Searched . | . . . . . . . . . . Spaces Dug . | . . . . . . . . . . Terrain Destroyed 81 | . 3 . 16 . 42 5 . . 15 Melee . | . . . . . . . . . . Projectile 21 | . . . . . 1 5 . . 15 AOE 60 | . 3 . 16 . 41 . . . . Terrain Rammed . | . . . . . . . . . . Walls Destroyed . | . . . . . . . . . . Machines Disabled . | . . . . . . . . . . Actions | -11 -10 -10 -9 -9 -8 -8 -8 -8 -7 --------- Run | Yrd Mat Min Mat Min Mat Gar Mat Gar Fac Total 7038 | 72 855 105 1623 60 1457 885 374 403 1204 Wait 607 | . 92 29 187 . 185 16 . 12 86 Move 5535 | 64 683 67 1256 51 1066 716 336 328 968 Hop . | . . . . . . . . . . Pick Up 102 | 2 14 1 14 2 29 17 2 7 14 Fast Attach 77 | 6 2 1 29 3 15 3 8 2 8 Attach 52 | . 3 . 6 . 18 12 1 . 12 Detach 7 | . 1 1 1 . 3 . 1 . . Swap 25 | . 5 2 3 1 1 4 3 1 5 Drop 75 | . 5 . 30 3 11 6 8 7 5 Fire 495 | . 50 4 97 . 129 76 14 22 103 Melee 2 | . . . . . . 2 . . . Ram . | . . . . . . . . . . Kick . | . . . . . . . . . . Crush . | . . . . . . . . . . Escape Stasis 52 | . . . . . . 32 . 20 . Rewire 9 | . . . . . . 1 1 4 3 Trap . | . . . . . . . . . . Miscellaneous . | . . . . . . . . . . Route ------- -11/Scrapyard -10/Materials (discovered 5 exits: *Mat x3 / *Min x2) -10/Mines -9/Materials (discovered 7 exits: *Mat x3 / *Min x2 / [*Sto x2]) -9/Mines -8/Materials (discovered 2 exits: *Fac / Gar) -8/Garrison (discovered 3 exits: *Mat x3) -8/Materials (discovered 2 exits: *Fac / Gar) -8/Garrison -7/Factory (discovered 1 exit: [*Fac]) History --------- Turn | Location | Event 5 | -11/Scrapyard | Discovered new exit (range 14) 110 | -11/Scrapyard | Entered Materials 288 | -10/Materials | Discovered new exit (range 14) 328 | -10/Materials | Build established: Mutant 552 | -10/Materials | Discovered new exit (range 16) 794 | -10/Materials | Discovered new exit (range 14) 1071 | -10/Materials | Discovered new exit (range 14) 1189 | -10/Materials | Discovered new exit (range 16) 1474 | -10/Materials | Entered Mines 1486 | -10/Mines | Learned Materials emergency access door positions 1514 | -10/Mines | Found the Drone Emporium 1523 | -10/Mines | Found Prototype Device 1523 | -10/Mines | Identified Thief Drone Bay 1534 | -10/Mines | Discovered new exit (range 35) 1629 | -10/Mines | Entered Materials 1629 | -9/Materials | Evolved 2 slots: Propulsion x1, Utility x1 1920 | -9/Materials | Discovered new exit (range 8) 2167 | -9/Materials | Discovered new exit (range 12) 2406 | -9/Materials | Discovered new exit (range 13) 2602 | -9/Materials | Discovered new exit (range 13) 2844 | -9/Materials | Discovered new exit (range 12) 3006 | -9/Materials | Discovered new exit (range 8) 3238 | -9/Materials | Discovered new exit (range 15) 3629 | -9/Materials | First assault squad dispatched 3671 | -9/Materials | Core integrity fell below 50% 3704 | -9/Materials | Destroyed 7 combat bots 4096 | -9/Materials | Entered Mines 4101 | -9/Mines | Met a Derelict who couldn't figure out how to use a Trap Extractor 4178 | -9/Mines | Discovered new exit (range 5) 4188 | -9/Mines | Entered Materials 4188 | -8/Materials | Evolved 2 slots: Propulsion x1, Utility x1 4413 | -8/Materials | Build established: Scavenger-Mutant 4838 | -8/Materials | Lost 4 parts (1p1n2u) 5069 | -8/Materials | Discovered new exit (range 16) 5406 | -8/Materials | Garrison activated, responded to threat 5784 | -8/Materials | Lost 3 parts (1n2u) 6188 | -8/Materials | First assault squad dispatched 6291 | -8/Materials | Core integrity fell below 50% 6321 | -8/Materials | Lost 10 parts (1p5n2u2w) 6329 | -8/Materials | Destroyed 8 combat bots 6828 | -8/Materials | Identified exit to Garrison 6828 | -8/Materials | Entered Garrison 6944 | -8/Garrison | Triggered checkpoint 7080 | -8/Garrison | Triggered checkpoint 7348 | -8/Garrison | Triggered checkpoint 7527 | -8/Garrison | Discovered new exit (range 10) 7664 | -8/Garrison | Triggered checkpoint 7729 | -8/Garrison | Lost 4 parts (3n1w) 7806 | -8/Garrison | Triggered checkpoint 7988 | -8/Garrison | Installed Relay Interface Framework 8014 | -8/Garrison | Discovered new exit (range 15) 8275 | -8/Garrison | Lost 6 parts (1p2n1u2w) 8414 | -8/Garrison | Garrison Relay disabled 8504 | -8/Garrison | Garrison Relay disabled 8811 | -8/Garrison | Build established: Bothacker-Mutant 8837 | -8/Garrison | Discovered new exit (range 10) 8882 | -8/Garrison | Triggered checkpoint 8936 | -8/Garrison | Garrison Relay disabled 9030 | -8/Garrison | Entered Materials 9030 | -8/Materials | Accompanied by 1 ally 9581 | -8/Materials | Discovered new exit (range 15) 9633 | -8/Materials | Core integrity fell below 20% 9799 | -8/Materials | Identified exit to Garrison 9799 | -8/Materials | Entered Garrison 9799 | -8/Garrison | Accompanied by 1 ally 9854 | -8/Garrison | Garrison Relay disabled 9983 | -8/Garrison | Triggered checkpoint 9996 | -8/Garrison | Expanded RIF knowledge: Hotswap 10034 | -8/Garrison | Garrison Relay disabled 10143 | -8/Garrison | Triggered checkpoint 10181 | -8/Garrison | Triggered checkpoint 10219 | -8/Garrison | Triggered checkpoint 10298 | -8/Garrison | Discovered new exit (range 10) 10415 | -8/Garrison | Garrison Relay disabled 10518 | -8/Garrison | Entered Factory 10518 | -7/Factory | Accompanied by 2 allies 10518 | -7/Factory | Evolved 2 slots: Utility x2 10761 | -7/Factory | Discovered new exit (range 8) 11366 | -7/Factory | Lost 3 parts (2n1w) 13909 | -7/Factory | System corruption reached 10% 13922 | -7/Factory | Core integrity fell below 50% 13940 | -7/Factory | Core integrity fell below 20% 13951 | -7/Factory | Destroyed by P-60 Hacker with Shock Rifle Last Messages --------------- Erasing system data. Installing primary routines, ETC: 6. 13913_ K-01 Serf latches onto Shotgunner 4a. 13913_ K-01 Serf pushes Shotgunner 4a. 13918_ K-01 Serf collects debris. 13918_ K-01 Serf pushes Shotgunner 4a. 13920_ Shotgunner 4a destroyed. 13920_ K-01 Serf collects debris. 13924_ Remote Datajack destroyed. 13926_ K-01 Serf collects debris. 13927_ ,X&NS8R JRU%, /0WFBRPRNTGA 13927_ K-01 Serf collects debris. 13930_ Relay Coupler [Specialist] destroyed. 13931_ K-01 Serf collects debris. 13942_ Chain reaction triggered in Lgt. Ion Engine. 13942_ Relay Coupler [Duelist] destroyed. 13943_ K-01 Serf collects debris. 13945_ Relay Coupler [Heavy] destroyed. 13945_ P-60 Hacker resets K-01 Serf, system corruption cleaned. 13948_ K-01 Serf collects debris. Map ----- +----------------------------------------------------+ | ?????????????????????????????????????????????????? | | ?????????????????????????????????????????????????? | | ?????????????????????????????????????????????????? | | ?????????????????????????????????????????????????? | | ?????????????????????????????????????????????????? | | ?????????????????????????????????????????????????? | | ?????????????????????????????????????????????????? | | ?????????????????????????????????????????????????? | | ?????????????????????????????????????????????????? | | ?????????????????????????????????????????????????? | | ?????????????????????????????????????????????????? | | ?????????????????????????????????????????????????? | | ?????? ?? ?? ?? ??????????????????????????????? | | ?????? ?? ? ???????????????????????????????? | | ??# ? ?? ??? ?# ?"????????????!=????????????? | | ???? ?? ? ?????????????????? !=????????????? | | #?? ? ? ? ?#? ? ????????? != ???????????? | | ???? ? ? ??????????????? ???????????? | | ##?#######+######????##????????% ????????????? | | ??#?## #?####??#?????## ;##????????????? | | ###### ############## !% #????????????? | | ?##### ^ !%= #????????????? | | ####?# ![ * ####?????????? | | ###### """"""" """"""" !=! ?????????? | | ###### """"""" """""" p!%]! #????????????? | | ###### """"""" """"" @*% #????????????? | | ###### """"""" """" p k ;## #????????????? | | ?##### ^ k%% k ##???????##????????????? | | ###### """"""" " " ###????????????????????? | | ###### """"""" """"""" #??????????????????????? | | ###### """"""" """"""" #??????????????????????? | | ###### """"""" """"""" #??????????????????????? | | #####" #??????????????????????? | | ! ??????????????????????? | | ### [ #####?????????????????????? | | ### #?????????????????????????? | | %#" !! #?????????????????????????? | | % #T !! """" """" ##?????????????????????????? | | | #" """" """" ###????????????????????????? | | # """" """" ####???????????????????????? | | #//! """" """" ##?#???????????????????????? | | #//! """" """" #?#????????????????????????? | | #/!! """" """" ##?????????????????????????? | | # """" """" ##???????????????########### | | + #??#?????######### == / | | # #####????# # == | | # # ####### # | | ###""" """## %% ! # """ """ | | ###"""T"""## %%[ + """ """ | | ############ = ! # """ """ | +----------------------------------------------------+ Best States ------------- Heat Dissipation 53 Energy Generation 18 Energy Capacity 290 Matter Stores 300 Matter Capacity 300 Sight Range 16 Terrain Scan Range 16 Terrain Scan Density 210 Armor Coverage 750 Resistance: KI 30 Resistance: EM 20 Utility Shielding 33 Weapon Cycling 15 Evasion (%) 40 Recoil Reduction 4 Relay Coupler Types 4 Relay Coupler Value 72 Item Schematics ----------------- None Robot Schematics ------------------ None Fabricated ------------ Nothing Alien Tech Used ----------------- None Achievements -------------- Infiltrator Challenges ------------ None Game ------ Seed CargoCarbideShearcannon Manual? 0 Play Time 01:19:51 Cumulative 76.3 hours Start 2024.05.04 @ 00:34:35 End 2024.05.04 @ 04:50:30 Sessions 3 Manual Loads 0 Difficulty Rogue Special Mode None Game No. 110 Rogue 105 Adventurer 5 Explorer 0 Win Type - Total 2 Types 1/0/0/1/0/0/0/0/0 Lore% 40 Gallery% 60 Achievement% 48 Wizard Run 0 Options --------- Layout 0 ASCII 0 Keyboard 0 Movement Mouse Keybinds 0 Fullscreen 1 Font 24/Smallcaps Map View 76x50 Zoom Use 16% Tactical HUD 1 Map Filters NONE Filters NONE Steam 1 RUN: 2896f2c1-aee2-4d1f-8abb-33a66eb25b21